bitfinex/quotes_BTCUSD_20241206
["timestamp","ask_amount","ask_price","bid_price","bid_amount"]
[1733504040180,0.00146633,99000.0,98999.0,0.31821431]
[1733504041385,0.00146633,99000.0,98999.0,0.31321431]
[1733504041620,0.00146633,99000.0,98999.0,0.31821431]
[1733504042322,0.00146633,99000.0,98999.0,0.31321431]
[1733504042542,0.00146633,99000.0,98999.0,0.31821431]
[1733504045001,0.00146633,99000.0,98999.0,0.31321431]
[1733504045224,0.00146633,99000.0,98999.0,0.31721431]
[1733504045730,0.00246633,99000.0,98999.0,0.32221431]
[1733504045934,0.00246633,99000.0,98999.0,0.31321431]
[1733504046164,0.00346633,99000.0,98999.0,0.32421431]
[1733504046394,0.07896633,99000.0,98999.0,0.12221431]
[1733504047368,0.07796633,99000.0,98999.0,0.12221431]
[1733504047611,0.07696633,99000.0,98999.0,0.11521431]
[1733504047821,0.07696633,99000.0,98999.0,0.11921431]
[1733504048435,0.07696633,99000.0,98999.0,0.11521431]
[1733504048779,0.07696633,99000.0,98999.0,0.11721431]
[1733504048983,0.07696633,99000.0,98999.0,0.11321431]
[1733504049201,0.07696633,99000.0,98999.0,0.11121431]
[1733504049418,0.07696633,99000.0,98999.0,0.11521431]
[1733504049619,0.07696633,99000.0,98999.0,0.41386137]
[1733504049826,0.07822898,99000.0,98999.0,0.01218277]
[1733504051516,0.12512898,99000.0,98999.0,0.01218277]
[1733504055831,0.17512818,99000.0,98999.0,0.01218277]
[1733504056781,0.17512818,99000.0,98999.0,0.18729305]
[1733504057289,0.202022,98999.0,98998.0,0.18129305]
[1733504057494,0.283422,98999.0,98998.0,0.18129305]
[1733504057716,0.3334212,98999.0,98998.0,0.18129305]
[1733504057931,0.4834212,98999.0,98998.0,0.18129305]
[1733504058166,0.0499992,98998.0,98997.0,0.18129305]
[1733504058381,0.3345252,98997.0,98996.0,0.18129305]
[1733504059290,0.0499992,98996.0,98995.0,0.18129305]
[1733504059495,0.05126197,98996.0,98995.0,0.18129305]
[1733504060190,0.05126197,98996.0,98990.0,0.000867]
[1733504060191,0.05126197,98996.0,98994.0,0.18129305]
[1733504060427,0.25329198,98995.0,98994.0,0.18129305]
[1733504060638,0.2520292,98995.0,98994.0,0.18129305]
[1733504061085,0.2520292,98995.0,98990.0,0.000867]
[1733504061086,0.2520332,98993.0,98992.0,0.13583189]
[1733504061305,0.2774992,98992.0,98990.0,0.13669889]
[1733504061520,0.202034,98993.0,98990.0,0.13669889]
[1733504061521,0.48080007,98991.0,98990.0,0.000867]
[1733504061748,0.4795372,98991.0,98990.0,0.000867]
[1733504063291,0.4825372,98991.0,98990.0,0.000867]
[1733504063512,0.4795372,98991.0,98990.0,0.000867]
[1733504063761,0.4825372,98991.0,98990.0,0.000867]
[1733504064871,0.4845372,98991.0,98990.0,0.000867]
[1733504065074,0.4815372,98991.0,98990.0,0.000867]
[1733504065290,0.4845372,98991.0,98990.0,0.000867]
[1733504082700,0.4070372,98991.0,98990.0,0.000867]
[1733504083144,0.4070372,98991.0,98990.0,0.13654676]
[1733504083346,0.4070372,98991.0,98990.0,0.000867]
[1733504084886,0.4070372,98991.0,98990.0,0.18177335]
[1733504085344,0.4070372,98991.0,98990.0,0.000867]
[1733504085725,0.4070372,98991.0,98990.0,0.1818883]
[1733504086103,0.40678825,98991.0,98990.0,0.000867]
[1733504086327,0.40678825,98991.0,98990.0,0.18189529]
[1733504087455,0.40678825,98991.0,98990.0,0.000867]
[1733504090402,0.40678825,98991.0,98990.0,0.22699994]
[1733504090631,0.40678825,98991.0,98990.0,0.22734224]
[1733504091081,0.40678825,98991.0,98990.0,0.22734189]
[1733504091301,0.40678825,98991.0,98990.0,0.000867]
[1733504093667,0.05475025,98991.0,98990.0,0.000867]
[1733504094090,0.05475025,98991.0,98990.0,0.27270393]
[1733504094303,0.005,98991.0,98990.0,0.10589854]
[1733504094554,0.005,98991.0,98990.0,0.25654829]
[1733504094752,0.005,98991.0,98990.0,0.26672305]
[1733504095228,0.002,98991.0,98990.0,0.26672305]
[1733504095436,0.002,98991.0,98990.0,0.26972305]
[1733504095682,0.002,98991.0,98990.0,0.26672305]
[1733504095894,0.002,98991.0,98990.0,0.57263976]
[1733504096107,0.001,98991.0,98990.0,0.2739728]
[1733504096328,0.001,98991.0,98990.0,0.2669728]
[1733504096548,0.002,98991.0,98990.0,0.2749728]
[1733504096968,0.002,98991.0,98990.0,0.2739728]
[1733504097189,0.002,98991.0,98990.0,0.29424076]
[1733504097411,0.002,98991.0,98990.0,0.29924076]
[1733504098081,0.00146633,99000.0,98999.0,0.171718]
[1733504098287,0.00146633,99000.0,98999.0,0.29974954]
[1733504099447,0.00146633,99000.0,98999.0,0.30474954]
[1733504100074,0.00246633,99000.0,98999.0,0.31074954]
[1733504100714,0.00246633,99000.0,98999.0,0.28774954]
[1733504100927,0.00246633,99000.0,98999.0,0.29074954]
[1733504101153,0.00246633,99000.0,98999.0,0.11903154]
[1733504101590,0.00146633,99000.0,98999.0,0.10803154]
[1733504101796,0.00146633,99000.0,98999.0,0.11203154]
[1733504102190,0.00146633,99000.0,98999.0,0.10803154]
[1733504102435,0.00246633,99000.0,98999.0,0.11403154]
[1733504102855,0.00246633,99000.0,98999.0,0.13703154]
[1733504103063,0.00246633,99000.0,98999.0,0.21803154]
[1733504103282,0.00246633,99000.0,98999.0,0.26353154]
[1733504103487,0.00246633,99000.0,98999.0,0.56924764]
[1733504103695,0.00246633,99000.0,98999.0,0.26353154]
[1733504105180,0.00246633,99000.0,98999.0,0.41378129]
[1733504105391,0.00246633,99000.0,98999.0,0.52449825]
[1733504105625,0.00246633,99000.0,98999.0,0.26353154]
[1733504105877,0.00246633,99000.0,98999.0,0.11403154]
[1733504106325,0.04975025,98998.0,98996.0,0.27124573]
[1733504106556,0.04975025,98998.0,98992.0,0.27124573]
[1733504106743,0.20328869,98997.0,98993.0,0.10503154]
[1733504107408,0.25303894,98997.0,98996.0,0.22605108]
[1733504107619,0.25177625,98997.0,98996.0,0.22605108]
[1733504107819,0.04975025,98997.0,98996.0,0.22605108]
[1733504108048,0.04975025,98997.0,98991.0,0.171732]
[1733504108256,0.05175025,98997.0,98993.0,0.171727]
[1733504108465,0.05175025,98997.0,98995.0,0.171725]
[1733504108680,0.05375025,98997.0,98995.0,0.171725]
[1733504108879,0.05375025,98997.0,98994.0,0.10503154]
[1733504109275,0.004,98997.0,98994.0,0.10503154]
[1733504109481,0.002,98997.0,98994.0,0.10503154]
[1733504109691,0.002,98997.0,98995.0,0.171725]
[1733504109925,0.002,98997.0,98996.0,0.10503154]
[1733504110153,0.00146633,99000.0,98996.0,0.10503154]
[1733504110359,0.00146633,99000.0,98990.0,0.1726]
[1733504110360,0.04975025,98995.0,98992.0,0.27124573]
[1733504110572,0.04975025,98994.0,98991.0,0.10503154]
[1733504111235,0.00146633,99000.0,98992.0,0.10503154]
[1733504111236,0.04975025,98997.0,98992.0,0.10503154]
[1733504111668,0.04975025,98997.0,98993.0,0.171729]
[1733504111871,0.04975025,98997.0,98994.0,0.10503154]
[1733504112079,0.04975025,98997.0,98995.0,0.171725]
[1733504112538,0.002,98997.0,98995.0,0.171725]
[1733504112692,0.002,98997.0,98996.0,0.10503154]
[1733504112911,0.00146633,99000.0,98996.0,0.10503154]
[1733504113259,0.002,98997.0,98996.0,0.10503154]
[1733504113423,0.00146633,99000.0,98996.0,0.10503154]
[1733504113848,0.001,98997.0,98996.0,0.10503154]
[1733504114431,0.00146633,99000.0,98996.0,0.10503154]
[1733504114912,0.002,98997.0,98996.0,0.10503154]
[1733504115061,0.00346633,99000.0,98996.0,0.10503154]
[1733504115883,0.202022,98999.0,98996.0,0.10503154]
[1733504116316,0.00346633,99000.0,98996.0,0.10503154]
[1733504116726,0.00546633,99000.0,98996.0,0.10503154]
[1733504116940,0.00346633,99000.0,98996.0,0.10503154]
[1733504117142,0.001,98999.0,98996.0,0.10503154]
[1733504117806,0.00346633,99000.0,98996.0,0.10503154]
[1733504117996,0.00246633,99000.0,98996.0,0.10503154]
[1733504118161,0.002,98999.0,98996.0,0.10503154]
[1733504118527,0.00246633,99000.0,98996.0,0.10503154]
[1733504118818,0.001,98999.0,98996.0,0.10503154]
[1733504120194,0.00246633,99000.0,98996.0,0.10503154]
[1733504120359,0.203022,98999.0,98996.0,0.10503154]
[1733504120540,0.001,98999.0,98996.0,0.10503154]
[1733504120753,0.00246633,99000.0,98996.0,0.10503154]
[1733504120947,0.001,98999.0,98996.0,0.10503154]
[1733504121765,0.202024,98998.0,98996.0,0.10503154]
[1733504122004,0.04975025,98993.0,98991.0,0.2713019]
[1733504122217,0.202034,98994.0,98990.0,0.000867]
[1733504122218,0.04975025,98991.0,98990.0,0.000867]
[1733504122450,0.05101311,98991.0,98990.0,0.000867]
[1733504122645,0.13351311,98991.0,98990.0,0.000867]
[1733504123471,0.13551311,98991.0,98990.0,0.18185748]
[1733504123757,0.13951311,98991.0,98990.0,0.18185748]
[1733504123930,0.13951311,98991.0,98990.0,0.000867]
[1733504124551,0.13751311,98991.0,98990.0,0.000867]
[1733504124985,0.13351311,98991.0,98990.0,0.000867]
[1733504125249,0.28751311,98991.0,98990.0,0.000867]
[1733504125462,0.28625025,98991.0,98990.0,0.000867]
[1733504125882,0.28825025,98991.0,98990.0,0.000867]
[1733504127431,0.28625025,98991.0,98990.0,0.000867]
[1733504127900,0.29125025,98991.0,98990.0,0.000867]
[1733504128122,0.28725025,98991.0,98990.0,0.000867]
[1733504128336,0.29625025,98991.0,98990.0,0.001867]
[1733504129271,0.50128179,98991.0,98990.0,0.001867]
[1733504129488,0.04975025,98975.0,98974.0,0.13573458]
[1733504129693,0.25182325,98974.0,98973.0,0.13573458]
[1733504130194,0.25182325,98974.0,98973.0,0.02]
[1733504130416,0.202075,98973.0,98971.0,0.13573458]
[1733504130639,0.00126312,98972.0,98970.0,0.13573458]
[1733504130883,0.202079,98971.0,98969.0,0.13573458]
[1733504131104,0.04975025,98970.0,98969.0,0.13573458]
[1733504131324,0.202083,98969.0,98963.0,0.13606465]
[1733504131553,0.04975025,98964.0,98963.0,0.13606465]
[1733504132231,0.25184325,98964.0,98963.0,0.00033007]
[1733504133112,0.25184325,98964.0,98963.0,0.00133007]
[1733504134470,0.25184325,98964.0,98963.0,0.00033007]
[1733504134674,0.202096,98963.0,98960.0,0.0008668]
[1733504134913,0.202099,98961.0,98960.0,0.0008668]
[1733504135811,0.202099,98961.0,98960.0,0.13642788]
[1733504136015,0.202099,98961.0,98960.0,0.0008668]
[1733504136677,0.25184925,98961.0,98960.0,0.0008668]
[1733504137516,0.25184925,98961.0,98960.0,0.0018668]
[1733504138181,0.25184925,98961.0,98960.0,0.13742788]
[1733504138386,0.04975025,98961.0,98960.0,0.13742788]
[1733504138590,0.04975025,98965.0,98960.0,0.10689834]
[1733504138793,0.04975025,98965.0,98964.0,0.1806363]
[1733504139006,0.04975025,98965.0,98964.0,0.22579463]
[1733504139484,0.11751623,98980.0,98964.0,0.22579463]
[1733504139485,0.04975025,98975.0,98964.0,0.33080966]
[1733504139738,0.04975025,98977.0,98970.0,0.13546861]
[1733504139942,0.04975025,98977.0,98974.0,0.30723061]
[1733504140148,0.04975025,98979.0,98975.0,0.13546861]
[1733504140599,0.04975025,98979.0,98976.0,0.27678954]
[1733504140779,0.00126292,98987.0,98976.0,0.24050015]
[1733504140780,0.04975025,98978.0,98976.0,0.24050015]
[1733504141746,0.05075025,98978.0,98976.0,0.24050015]
[1733504142154,0.04975025,98978.0,98976.0,0.24050015]
[1733504142356,0.05075025,98978.0,98976.0,0.24050015]
[1733504143417,0.05075025,98978.0,98976.0,0.25084623]
[1733504144202,0.04975025,98978.0,98977.0,0.13546861]
[1733504144614,0.05075025,98978.0,98977.0,0.13546861]
[1733504144853,0.05175025,98978.0,98977.0,0.13546861]
[1733504145446,0.05075025,98978.0,98977.0,0.13546861]
[1733504145671,0.05175025,98978.0,98977.0,0.13546861]
[1733504146053,0.05075025,98978.0,98977.0,0.13546861]
[1733504146262,0.05075025,98978.0,98976.0,0.11537762]
[1733504146418,0.05175025,98978.0,98976.0,0.11537762]
[1733504146616,0.04975025,98975.0,98973.0,0.18062481]
[1733504146824,0.202069,98976.0,98971.0,0.20062481]
[1733504146825,0.25182725,98972.0,98971.0,0.20062481]
[1733504147047,0.25182725,98972.0,98971.0,0.02]
[1733504148308,0.25182725,98972.0,98971.0,0.022]
[1733504149401,0.25182725,98972.0,98971.0,0.023]
[1733504149802,0.25182725,98972.0,98971.0,0.003]
[1733504150012,0.25182725,98972.0,98971.0,0.002]
[1733504150215,0.25282725,98972.0,98971.0,0.002]
[1733504150619,0.202099,98961.0,98960.0,0.136408]
[1733504151082,0.25184925,98961.0,98960.0,0.0008668]
[1733504152424,0.25184925,98961.0,98960.0,0.18149161]
[1733504152734,0.25184925,98961.0,98960.0,0.18249161]
[1733504153682,0.25184925,98961.0,98960.0,0.0018668]
[1733504154161,0.25184925,98961.0,98960.0,0.18275449]
[1733504155317,0.25184925,98961.0,98960.0,0.0018668]
[1733504155733,0.25184925,98961.0,98960.0,0.22764782]
[1733504156782,0.25184925,98961.0,98960.0,0.0018668]
[1733504157529,0.04975025,98961.0,98960.0,0.0018668]
[1733504157961,0.04975025,98961.0,98960.0,0.22800063]
[1733504157962,0.05101341,98961.0,98960.0,0.22800063]
[1733504158163,0.05101341,98961.0,98960.0,0.22800891]
[1733504158531,0.04975025,98961.0,98960.0,0.22800891]
[1733504158746,0.0510134,98961.0,98960.0,0.22800891]
[1733504159396,0.0510134,98961.0,98960.0,0.0018668]
[1733504159602,0.0510134,98961.0,98960.0,0.18281542]
[1733504160259,0.0510134,98961.0,98960.0,0.0018668]
[1733504160502,0.05101346,98961.0,98960.0,0.0018668]
[1733504160981,0.04975025,98961.0,98960.0,0.0018668]
[1733504161609,0.05101341,98961.0,98960.0,0.0018668]
[1733504162685,0.04975025,98961.0,98960.0,0.0018668]
[1733504164248,0.04975025,98970.0,98962.0,0.023]
[1733504164483,0.04975025,98975.0,98971.0,0.171766]
[1733504164695,0.04975025,98975.0,98972.0,0.10503154]
[1733504164924,0.04975025,98975.0,98972.0,0.37665884]
[1733504165409,0.04975025,98975.0,98973.0,0.2716273]
[1733504165626,0.04975025,98975.0,98974.0,0.37665884]
[1733504165844,0.05475025,98975.0,98974.0,0.37665884]
[1733504166103,0.05475025,98975.0,98974.0,0.10503154]
[1733504166318,0.05575025,98975.0,98974.0,0.10503154]
[1733504167070,0.05075025,98975.0,98974.0,0.10503154]
[1733504167444,0.05175025,98975.0,98974.0,0.10503154]
[1733504167677,0.05075025,98975.0,98974.0,0.10503154]
[1733504167888,0.04975025,98975.0,98974.0,0.10503154]
[1733504168157,0.002,98975.0,98974.0,0.10503154]
[1733504168613,0.001,98975.0,98974.0,0.20473154]
[1733504168815,0.0017338,98990.0,98989.0,0.194736]
[1733504169083,0.0017338,98990.0,98989.0,0.29976754]
[1733504169292,0.0017338,98990.0,98989.0,0.32970193]
[1733504169741,0.0017338,98990.0,98989.0,0.29976754]
[1733504170821,0.0017338,98990.0,98989.0,0.30999326]
[1733504171210,0.0017338,98990.0,98989.0,0.31099326]
[1733504171447,0.0017338,98990.0,98989.0,0.31399326]
[1733504172369,0.05134705,98990.0,98989.0,0.01322572]
[1733504172582,0.05134705,98990.0,98989.0,0.005]
[1733504173026,0.20260988,98990.0,98989.0,0.005]
[1733504173227,0.28444705,98990.0,98989.0,0.005]
[1733504173469,0.51793029,98990.0,98989.0,0.005]
[1733504173692,0.51793029,98990.0,98989.0,0.002]
[1733504173874,0.43947859,98990.0,98989.0,0.002]
[1733504174029,0.25168625,98974.0,98973.0,0.13580808]
[1733504174821,0.25168625,98974.0,98960.0,0.27247363]
[1733504174822,0.04961325,98971.0,98970.0,0.22633394]
[1733504175039,0.04961325,98968.0,98966.0,0.171776]
[1733504175255,0.04961325,98968.0,98967.0,0.10503154]
[1733504176173,0.25170625,98964.0,98960.0,0.0008668]
[1733504176385,0.25171225,98961.0,98960.0,0.27248823]
[1733504176589,0.25171225,98961.0,98960.0,0.0008668]
[1733504178827,0.31730138,98961.0,98960.0,0.0008668]
[1733504179047,0.25171225,98961.0,98960.0,0.0008668]
[1733504180555,0.26071225,98961.0,98960.0,0.0018668]
[1733504180788,0.26671225,98961.0,98960.0,0.0028668]
[1733504180997,0.26813435,98961.0,98960.0,0.0018668]
[1733504181206,0.27113435,98961.0,98960.0,0.0018668]
[1733504181670,0.26671225,98961.0,98960.0,0.0028668]
[1733504182779,0.26071225,98961.0,98960.0,0.0018668]
[1733504183482,0.25171225,98961.0,98960.0,0.0008668]
[1733504183706,0.26071225,98961.0,98960.0,0.0018668]
[1733504183922,0.26571225,98961.0,98960.0,0.0018668]
[1733504184144,0.26571225,98961.0,98960.0,0.0028668]
[1733504184359,0.27471225,98961.0,98960.0,0.0028668]
[1733504184590,0.26571225,98961.0,98960.0,0.0018668]
[1733504184831,0.27471225,98961.0,98960.0,0.0028668]
[1733504185243,0.27471225,98961.0,98960.0,0.1386337]
[1733504185451,0.27471225,98961.0,98960.0,0.0028668]
[1733504185664,0.27471225,98961.0,98960.0,0.1386337]
[1733504186305,0.27471225,98961.0,98960.0,0.0028668]
[1733504187452,0.27471225,98961.0,98960.0,0.13862781]
[1733504188938,0.27471225,98961.0,98960.0,0.0028668]
[1733504189214,0.07261325,98961.0,98960.0,0.0028668]
[1733504190070,0.07261325,98961.0,98960.0,0.0018668]
[1733504190071,0.05461325,98961.0,98960.0,0.0018668]
[1733504190285,0.06361325,98961.0,98960.0,0.0028668]
[1733504190509,0.05861325,98961.0,98960.0,0.0018668]
[1733504190937,0.014,98961.0,98960.0,0.10789834]
[1733504191119,0.005,98961.0,98960.0,0.10689834]
[1733504191403,0.04961325,98971.0,98970.0,0.171767]
[1733504191640,0.04961325,98976.0,98970.0,0.10503154]
[1733504191849,0.04961325,98976.0,98971.0,0.10503154]
[1733504192054,0.04961325,98976.0,98971.0,0.37650332]
[1733504192257,0.04961325,98976.0,98972.0,0.27147178]
[1733504192468,0.04961325,98976.0,98974.0,0.171762]
[1733504192697,0.04961325,98976.0,98974.0,0.27679354]
[1733504193349,0.04961325,98985.0,98979.0,0.171753]
[1733504193589,0.0017338,98990.0,98979.0,0.42928454]
[1733504194051,0.0017338,98990.0,98979.0,0.45914572]
[1733504194270,0.0017338,98990.0,98979.0,0.50914572]
[1733504196169,4e-07,98980.0,98979.0,0.50953247]
[1733504196401,0.0017338,98990.0,98989.0,0.47302275]
[1733504196621,0.00146633,99000.0,98999.0,0.05]
[1733504196906,0.00146633,99000.0,98999.0,0.42764954]
[1733504197149,0.04961325,99037.0,99009.0,0.05]
[1733504197382,0.0017334,99040.0,99009.0,1.71555971]
[1733504197575,0.0017334,99040.0,99009.0,1.68573254]
[1733504197840,0.04961325,99035.0,99009.0,1.68573254]
[1733504198307,0.04961325,99035.0,99009.0,1.71553294]
[1733504198526,0.04961325,99035.0,99009.0,1.72553804]
[1733504198788,0.0027338,99010.0,99009.0,1.70173764]
[1733504199501,0.0037338,99010.0,99009.0,1.71073764]
[1733504199721,0.0037338,99010.0,99009.0,1.72243997]
[1733504200195,0.0047338,99010.0,99009.0,1.73143997]
[1733504201711,0.0047338,99010.0,99009.0,2.13021282]
[1733504202590,0.0047338,99010.0,99009.0,1.73143997]
[1733504207285,0.0017334,99040.0,99039.0,0.171649]
[1733504207506,0.0017334,99040.0,99039.0,0.27668054]
[1733504208567,0.0017334,99040.0,99039.0,0.27768054]
[1733504210545,0.0017334,99040.0,99039.0,0.27968054]
[1733504210761,0.0017334,99040.0,99039.0,0.28990703]
[1733504211956,0.0017334,99040.0,99039.0,0.10803154]
[1733504212481,0.0017334,99040.0,99039.0,0.27968054]
[1733504213433,0.0017334,99040.0,99039.0,0.10803154]
[1733504215163,0.0017334,99040.0,99039.0,0.13103154]
[1733504216484,0.0017334,99040.0,99039.0,0.35653154]
[1733504216684,0.0017334,99040.0,99039.0,0.40691829]
[1733504217114,0.0017334,99040.0,99039.0,0.67661126]
[1733504217324,0.0017334,99040.0,99039.0,0.67361126]
[1733504217537,0.0017334,99040.0,99039.0,0.67761126]
[1733504217762,0.0017334,99040.0,99039.0,0.40591829]
[1733504218178,0.0027334,99040.0,99039.0,0.41491829]
[1733504218389,0.0017334,99040.0,99039.0,0.40591829]
[1733504219023,0.0017334,99040.0,99039.0,0.40391829]
[1733504219525,0.0027334,99040.0,99039.0,0.41091829]
[1733504220045,0.0017334,99040.0,99039.0,0.40391829]
[1733504220226,0.0037334,99040.0,99039.0,0.41891829]
[1733504220644,0.0027334,99040.0,99039.0,0.41291829]
[1733504220991,0.0027334,99040.0,99039.0,0.67361126]
[1733504221205,0.0027334,99040.0,99039.0,0.67961126]
[1733504221431,0.1037334,99040.0,99039.0,0.68861126]
[1733504221662,0.1027334,99040.0,99039.0,0.40991829]
[1733504222080,0.001774,99050.0,99049.0,0.39501875]
[1733504222291,0.001774,99050.0,99049.0,2.07825029]
[1733504222520,0.0017346,99070.0,99049.0,2.07825029]
[1733504222521,0.0017346,99070.0,99059.0,0.394614]
[1733504222744,0.0017346,99070.0,99059.0,0.59772988]
[1733504223199,0.0017346,99070.0,99059.0,0.73201263]
[1733504223436,0.0017346,99070.0,99059.0,0.59772988]
[1733504223870,0.0017346,99070.0,99059.0,0.60272988]
[1733504224086,0.0027348,99060.0,99059.0,0.61172988]
[1733504224555,0.0017348,99060.0,99059.0,0.60272988]
[1733504224795,0.0027348,99060.0,99059.0,0.61134313]
[1733504225028,0.0027348,99060.0,99059.0,0.34359395]
[1733504225476,0.0027348,99060.0,99059.0,0.33859395]
[1733504225699,0.0027348,99060.0,99059.0,0.34359395]
[1733504225934,0.0027348,99060.0,99059.0,0.11903154]
[1733504226153,0.0027348,99060.0,99059.0,0.11403154]
[1733504226359,0.0017348,99060.0,99059.0,0.10503154]
[1733504226588,0.0017348,99060.0,99059.0,0.11903154]
[1733504226798,0.0017348,99060.0,99059.0,0.11003154]
[1733504227026,0.0017348,99060.0,99059.0,0.10503154]
[1733504227234,0.0017348,99060.0,99059.0,0.12803154]
[1733504229378,0.0017348,99060.0,99059.0,0.13203154]
[1733504229612,0.0017348,99060.0,99059.0,0.12903154]
[1733504230093,0.0017348,99060.0,99059.0,0.40773154]
[1733504230323,0.0017348,99060.0,99059.0,0.40473154]
[1733504230546,0.0017348,99060.0,99059.0,0.63368539]
[1733504230762,0.0017348,99060.0,99059.0,0.40973154]
[1733504231008,0.0017348,99060.0,99059.0,0.40473154]
[1733504231222,0.0017348,99060.0,99059.0,0.41273154]
[1733504231683,0.04070246,99085.0,99066.0,0.05]
[1733504231948,0.0008674,99110.0,99089.0,0.394562]
[1733504232172,0.0008674,99110.0,99099.0,0.194545]
[1733504232352,0.0008674,99110.0,99109.0,0.194528]
[1733504232607,0.0008674,99110.0,99109.0,0.29955954]
[1733504233274,0.0008674,99110.0,99109.0,0.52372384]
[1733504233700,0.0008674,99110.0,99109.0,0.30255954]
[1733504233913,0.0008674,99110.0,99109.0,1.41265954]
[1733504234120,0.0008674,99110.0,99109.0,1.41765954]
[1733504234544,0.0008674,99110.0,99109.0,1.41265954]
[1733504235447,0.0008674,99110.0,99109.0,1.40965954]
[1733504235639,0.0008674,99110.0,99109.0,1.41265954]
[1733504235851,0.0008674,99110.0,99109.0,1.43009106]
[1733504236106,0.0008674,99110.0,99109.0,1.42309106]
[1733504236326,0.1008674,99110.0,99109.0,1.42009106]
[1733504236530,0.1008674,99110.0,99109.0,1.42909106]
[1733504236740,0.1008674,99110.0,99109.0,1.42309106]
[1733504236964,0.1008674,99110.0,99109.0,0.58835367]
[1733504237152,0.1008674,99110.0,99109.0,0.31899106]
[1733504237587,0.1008674,99110.0,99109.0,0.5884778]
[1733504237814,0.1008674,99110.0,99109.0,0.31899106]
[1733504238026,0.1008674,99110.0,99109.0,0.31599106]
[1733504238243,0.1008674,99110.0,99109.0,0.31299106]
[1733504238904,0.1008674,99110.0,99109.0,0.30999106]
[1733504239124,0.10053733,99110.0,99109.0,0.31199106]
[1733504239339,0.10053733,99110.0,99109.0,0.90925333]
[1733504239558,0.10053733,99110.0,99109.0,0.51199106]
[1733504239780,0.10053733,99110.0,99109.0,0.51599106]
[1733504239997,0.10053733,99110.0,99109.0,0.47299106]
[1733504240202,0.10053733,99110.0,99109.0,0.52099106]
[1733504240626,0.10053733,99110.0,99109.0,0.55540499]
[1733504240859,0.10053733,99110.0,99109.0,0.58192702]
[1733504241059,0.10053733,99110.0,99109.0,0.65922702]
[1733504241261,0.10053733,99110.0,99109.0,0.66722702]
[1733504241468,0.10053733,99110.0,99109.0,0.6045886]
[1733504241646,0.10053733,99110.0,99109.0,0.6075886]
[1733504242070,0.10053733,99110.0,99109.0,0.6045886]
[1733504242354,0.10053733,99110.0,99109.0,0.6085886]
[1733504243154,0.10053733,99110.0,99109.0,0.52199106]
[1733504244035,0.10023733,99110.0,99109.0,0.52199106]
[1733504244261,0.10023733,99110.0,99109.0,0.69658368]
[1733504244476,0.10023733,99110.0,99109.0,0.29899106]
[1733504247154,0.10023733,99110.0,99109.0,0.32199106]
[1733504247364,0.10023733,99110.0,99109.0,0.15046306]
[1733504255497,0.10023733,99110.0,99109.0,0.30046306]
[1733504255902,0.10023733,99110.0,99109.0,0.69858227]
[1733504257523,0.10023733,99110.0,99109.0,0.4366606]
[1733504257816,0.10023733,99110.0,99109.0,0.46647445]
[1733504258024,0.10023733,99110.0,99109.0,0.4366606]
[1733504258224,0.10023733,99110.0,99109.0,0.33957832]
[1733504258427,0.10023733,99110.0,99109.0,0.3057606]
[1733504258678,0.10023733,99110.0,99109.0,0.3097606]
[1733504259413,0.10023733,99110.0,99109.0,0.3017606]
[1733504259640,0.10023733,99110.0,99109.0,0.3097606]
[1733504259853,0.10023733,99110.0,99109.0,0.30046306]
[1733504261365,0.10023733,99110.0,99109.0,0.33031349]
[1733504262147,0.10023733,99110.0,99109.0,0.30046306]
[1733504262287,0.10023733,99110.0,99109.0,0.33032848]
[1733504262714,0.10023733,99110.0,99109.0,0.12746306]
[1733504263160,0.10023733,99110.0,99109.0,0.52651512]
[1733504263726,0.10023733,99110.0,99109.0,0.12746306]
[1733504264173,0.10023733,99110.0,99109.0,0.15046306]
[1733504264392,0.10023733,99110.0,99109.0,0.18037395]
[1733504269872,0.10023733,99110.0,99109.0,0.33037395]
[1733504272112,0.0009082,99120.0,99119.0,0.35380854]
[1733504272373,0.0008677,99130.0,99129.0,0.194493]
[1733504272611,0.0456,99150.0,99129.0,0.194493]
[1733504272612,0.0456,99150.0,99139.0,0.171476]
[1733504272858,0.0456,99150.0,99139.0,0.32941843]
[1733504273325,0.0456,99150.0,99139.0,0.36533172]
[1733504273966,0.0456,99150.0,99139.0,0.39252885]
[1733504274223,0.0456,99150.0,99139.0,0.38552885]
[1733504274452,0.0456,99150.0,99139.0,0.34961556]
[1733504274684,0.0456,99150.0,99139.0,0.35561556]
[1733504274914,0.0456,99150.0,99139.0,0.35161556]
[1733504275396,0.0456,99150.0,99139.0,0.34961556]
[1733504275630,0.0456,99150.0,99139.0,0.35161556]
[1733504275819,0.0456,99150.0,99139.0,0.3620015]
[1733504276317,0.0456,99150.0,99139.0,0.3690015]
[1733504276772,0.0456,99150.0,99139.0,0.3600015]
[1733504276991,0.0456,99150.0,99139.0,0.3680015]
[1733504277436,0.0456,99150.0,99139.0,0.3620015]
[1733504277657,0.0456,99150.0,99139.0,0.3600015]
[1733504277956,0.04070246,99148.0,99139.0,0.13861461]
[1733504278184,0.0456,99150.0,99139.0,0.14561461]
[1733504278185,0.04070246,99146.0,99139.0,0.14561461]
[1733504278414,0.04070246,99146.0,99139.0,0.12241748]
[1733504278650,0.04070246,99145.0,99139.0,0.12241748]
[1733504278879,0.04070246,99145.0,99139.0,0.12441748]
[1733504279272,0.04070246,99145.0,99139.0,0.11741748]
[1733504279672,0.04070246,99145.0,99139.0,0.12441748]
[1733504279882,0.04070246,99145.0,99139.0,0.11741748]
[1733504280078,0.04070246,99145.0,99139.0,0.12041748]
[1733504280497,0.04070246,99145.0,99139.0,0.12241748]
[1733504281008,0.04070246,99145.0,99139.0,0.12041748]
[1733504281213,0.04070246,99145.0,99139.0,0.12241748]
[1733504281825,0.1009082,99140.0,99139.0,0.12241748]
[1733504282480,0.1009082,99140.0,99139.0,0.52304297]
[1733504282683,0.1009082,99140.0,99139.0,0.007]
[1733504282684,0.1774082,99140.0,99139.0,0.007]
[1733504282899,0.21811066,99140.0,99139.0,0.007]
[1733504283332,0.1774082,99140.0,99139.0,0.10703154]
[1733504284548,0.1774082,99140.0,99139.0,0.10503154]
[1733504285767,0.1774082,99140.0,99139.0,0.10603154]
[1733504285964,0.1774082,99140.0,99139.0,0.10503154]
[1733504287002,0.1784082,99140.0,99139.0,0.10503154]
[1733504287417,0.1774082,99140.0,99139.0,0.10503154]
[1733504287843,0.1784082,99140.0,99139.0,0.10503154]
[1733504288316,0.1784082,99140.0,99139.0,0.37639694]
[1733504288753,0.1784082,99140.0,99139.0,0.2713654]
[1733504288754,0.21911066,99140.0,99139.0,0.2713654]
[1733504288953,0.04070246,99139.0,99137.0,0.2713654]
[1733504289177,0.04070246,99139.0,99130.0,0.0102677]
[1733504289178,0.04070246,99135.0,99130.0,0.0102677]
[1733504289388,0.04070246,99135.0,99131.0,0.10503154]
[1733504289661,0.04070246,99135.0,99103.0,0.08639754]